[Event "Late-Titled-Tuesday-Blitz-August-29-2023"]
[Site "Chess.com"]
[Date "2023.08.29"]
[Round "10"]
[White "PepeCuenca"]
[Black "ErikRonka"]
[Result "1-0"]
[WhiteElo "2703"]
[BlackElo "2499"]
[TimeControl "180+1"]
[EndTime "15:51:43 PDT"]
[Termination "PepeCuenca won by resignation"]

1. c4 {[%clk 0:03:00.9]} 1... c6 {[%clk 0:02:55.2]} 2. d4 {[%clk 0:02:58]} 2...
d5 {[%clk 0:02:56.1]} 3. Nf3 {[%clk 0:02:57.4]} 3... e6 {[%clk 0:02:49.9]} 4. e3
{[%clk 0:02:55.8]} 4... Nf6 {[%clk 0:02:49.2]} 5. b3 {[%clk 0:02:49.8]} 5...
Nbd7 {[%clk 0:02:42.1]} 6. Bd3 {[%clk 0:02:48.5]} 6... Bd6 {[%clk 0:02:41.1]} 7.
Bb2 {[%clk 0:02:46.3]} 7... Qe7 {[%clk 0:02:38.2]} 8. O-O {[%clk 0:02:44.7]}
8... e5 {[%clk 0:02:32.6]} 9. dxe5 {[%clk 0:02:13.2]} 9... Nxe5 {[%clk
0:02:33.5]} 10. Nxe5 {[%clk 0:02:11.2]} 10... Bxe5 {[%clk 0:02:34.4]} 11. Bxe5
{[%clk 0:02:11.8]} 11... Qxe5 {[%clk 0:02:35.3]} 12. Nd2 {[%clk 0:02:12.5]}
12... O-O {[%clk 0:02:26.7]} 13. h3 {[%clk 0:02:07.6]} 13... Bf5 {[%clk
0:02:20.3]} 14. Nf3 {[%clk 0:02:02.2]} 14... Qxa1 {[%clk 0:01:58.2]} 15. Qxa1
{[%clk 0:01:58.6]} 15... Bxd3 {[%clk 0:01:58.7]} 16. Rc1 {[%clk 0:01:51]} 16...
dxc4 {[%clk 0:01:57.9]} 17. bxc4 {[%clk 0:01:51]} 17... c5 {[%clk 0:01:54.3]}
18. Ne5 {[%clk 0:01:42.4]} 18... Be4 {[%clk 0:01:53.3]} 19. f3 {[%clk
0:01:39.2]} 19... Bf5 {[%clk 0:01:53.5]} 20. Rd1 {[%clk 0:01:32.3]} 20... Rfd8
{[%clk 0:01:52.7]} 21. Kf2 {[%clk 0:01:30.7]} 21... h6 {[%clk 0:01:49.5]} 22. g4
{[%clk 0:01:30.5]} 22... Be6 {[%clk 0:01:49.5]} 23. Qc1 {[%clk 0:01:25.7]} 23...
Kf8 {[%clk 0:01:47.5]} 24. h4 {[%clk 0:01:25.4]} 24... Ke7 {[%clk 0:01:45.6]}
25. g5 {[%clk 0:01:24.1]} 25... hxg5 {[%clk 0:01:45.1]} 26. hxg5 {[%clk
0:01:24.3]} 26... Nd7 {[%clk 0:01:41]} 27. Nxd7 {[%clk 0:01:23.5]} 27... Rxd7
{[%clk 0:01:41.9]} 28. Rxd7+ {[%clk 0:01:23.6]} 28... Bxd7 {[%clk 0:01:42.8]}
29. Qc3 {[%clk 0:01:24.1]} 29... f6 {[%clk 0:01:37.8]} 30. Qd3 {[%clk
0:01:07.1]} 30... Be6 {[%clk 0:00:55.2]} 31. Qg6 {[%clk 0:01:03.3]} 31... fxg5
{[%clk 0:00:51.1]} 32. Qxg7+ {[%clk 0:01:03.4]} 32... Kd6 {[%clk 0:00:51.8]} 33.
Qxg5 {[%clk 0:00:59.3]} 33... Bxc4 {[%clk 0:00:40]} 34. Qf4+ {[%clk 0:00:56.8]}
34... Kd5 {[%clk 0:00:40.6]} 35. Qe4+ {[%clk 0:00:56.8]} 1-0

[Event "Late-Titled-Tuesday-Blitz-August-29-2023"]
[Site "Chess.com"]
[Date "2023.08.29"]
[Round "10"]
[White "Jahonas"]
[Black "MathiasCasalaspro"]
[Result "1-0"]
[WhiteElo "2460"]
[BlackElo "2277"]
[TimeControl "180+1"]
[EndTime "15:51:48 PDT"]
[Termination "Jahonas won by resignation"]

1. e4 {[%clk 0:03:00.9]} 1... c6 {[%clk 0:02:59.3]} 2. c4 {[%clk 0:02:58.1]}
2... d5 {[%clk 0:03:00.2]} 3. exd5 {[%clk 0:02:57]} 3... cxd5 {[%clk 0:03:01.1]}
4. d4 {[%clk 0:02:56.5]} 4... Nf6 {[%clk 0:02:59.6]} 5. Nc3 {[%clk 0:02:54.9]}
5... Nc6 {[%clk 0:02:59.6]} 6. c5 {[%clk 0:02:54.5]} 6... e5 {[%clk 0:02:37]} 7.
dxe5 {[%clk 0:02:53.7]} 7... Nxe5 {[%clk 0:02:37.9]} 8. Nf3 {[%clk 0:02:49.9]}
8... Nc6 {[%clk 0:02:26.7]} 9. Bb5 {[%clk 0:02:40.3]} 9... Bxc5 {[%clk
0:02:22.6]} 10. O-O {[%clk 0:02:34.1]} 10... O-O {[%clk 0:02:22.4]} 11. Bg5
{[%clk 0:02:32.9]} 11... Be6 {[%clk 0:01:44.6]} 12. Bxc6 {[%clk 0:02:20.7]}
12... bxc6 {[%clk 0:01:44.3]} 13. Rc1 {[%clk 0:02:20]} 13... h6 {[%clk
0:01:38.6]} 14. Bxf6 {[%clk 0:02:18.1]} 14... Qxf6 {[%clk 0:01:39.5]} 15. Na4
{[%clk 0:02:16.9]} 15... Bb6 {[%clk 0:01:23.5]} 16. Rxc6 {[%clk 0:02:14.9]}
16... Rac8 {[%clk 0:01:23.4]} 17. Rxc8 {[%clk 0:02:10.7]} 17... Rxc8 {[%clk
0:01:24.3]} 18. Nxb6 {[%clk 0:02:09.2]} 18... axb6 {[%clk 0:01:25.2]} 19. Qd4
{[%clk 0:02:07.1]} 19... Rc2 {[%clk 0:00:57.2]} 20. Qxf6 {[%clk 0:01:55.7]}
20... gxf6 {[%clk 0:00:58.1]} 21. Rb1 {[%clk 0:01:55.1]} 21... b5 {[%clk
0:00:43.6]} 22. a3 {[%clk 0:01:53.6]} 22... Bd7 {[%clk 0:00:23.8]} 23. h3 {[%clk
0:01:49.5]} 23... Kf8 {[%clk 0:00:22.9]} 24. Nd4 {[%clk 0:01:34.9]} 24... Rd2
{[%clk 0:00:23.1]} 25. Nb3 {[%clk 0:01:33.5]} 25... Re2 {[%clk 0:00:20.5]} 26.
Kf1 {[%clk 0:01:29.6]} 26... Rc2 {[%clk 0:00:20.5]} 27. Nd4 {[%clk 0:01:23]}
27... Rd2 {[%clk 0:00:21]} 28. Nf3 {[%clk 0:01:19.6]} 28... Rd3 {[%clk 0:00:18]}
29. Ke2 {[%clk 0:01:17.2]} 29... Rb3 {[%clk 0:00:17.7]} 30. Nd4 {[%clk
0:01:13.8]} 30... Bf5 {[%clk 0:00:14]} 31. Nxf5 {[%clk 0:01:11.8]} 31... b4
{[%clk 0:00:13.3]} 32. Nd4 {[%clk 0:01:11.5]} 1-0

[Event "Late-Titled-Tuesday-Blitz-August-29-2023"]
[Site "Chess.com"]
[Date "2023.08.29"]
[Round "10"]
[White "Fan_Of_Chucky"]
[Black "matagordo"]
[Result "1-0"]
[WhiteElo "2508"]
[BlackElo "2222"]
[TimeControl "180+1"]
[EndTime "15:51:54 PDT"]
[Termination "Fan_Of_Chucky won on time"]

1. d4 {[%clk 0:02:52.9]} 1... e6 {[%clk 0:02:57.3]} 2. c4 {[%clk 0:02:53.8]}
2... Nf6 {[%clk 0:02:55.7]} 3. Nf3 {[%clk 0:02:52.6]} 3... Bb4+ {[%clk
0:02:55.9]} 4. Bd2 {[%clk 0:02:51.8]} 4... Qe7 {[%clk 0:02:56.4]} 5. g3 {[%clk
0:02:48.8]} 5... Nc6 {[%clk 0:02:56.2]} 6. e3 {[%clk 0:02:44.6]} 6... Bxd2+
{[%clk 0:02:56.3]} 7. Qxd2 {[%clk 0:02:35.9]} 7... d6 {[%clk 0:02:57.2]} 8. Bg2
{[%clk 0:02:34.8]} 8... O-O {[%clk 0:02:54.8]} 9. Nc3 {[%clk 0:02:34.6]} 9... e5
{[%clk 0:02:54.8]} 10. O-O {[%clk 0:02:34.8]} 10... Bg4 {[%clk 0:02:18.9]} 11.
Nd5 {[%clk 0:02:30]} 11... Nxd5 {[%clk 0:02:12.8]} 12. cxd5 {[%clk 0:02:30.9]}
12... Bxf3 {[%clk 0:02:03.6]} 13. Bxf3 {[%clk 0:02:30.3]} 13... Nb8 {[%clk
0:02:03.6]} 14. dxe5 {[%clk 0:02:25.9]} 14... Qxe5 {[%clk 0:02:03]} 15. Rac1
{[%clk 0:02:24.3]} 15... Qe7 {[%clk 0:01:54]} 16. Qc3 {[%clk 0:02:24.8]} 16...
Rc8 {[%clk 0:01:04.4]} 17. Bg4 {[%clk 0:02:23.7]} 17... Nd7 {[%clk 0:01:04.9]}
18. Qb3 {[%clk 0:02:24.3]} 18... Nc5 {[%clk 0:00:55.9]} 19. Rxc5 {[%clk
0:02:19.1]} 19... dxc5 {[%clk 0:00:51.4]} 20. Bxc8 {[%clk 0:02:20]} 20... Rxc8
{[%clk 0:00:51.4]} 21. Qxb7 {[%clk 0:02:18.7]} 21... Qd7 {[%clk 0:00:45.7]} 22.
Rc1 {[%clk 0:02:15.8]} 22... Rd8 {[%clk 0:00:32.4]} 23. Rxc5 {[%clk 0:02:15.1]}
23... Qa4 {[%clk 0:00:32.3]} 24. Qxc7 {[%clk 0:02:09.5]} 24... Re8 {[%clk
0:00:22.3]} 25. d6 {[%clk 0:02:05.1]} 25... Qd1+ {[%clk 0:00:20.4]} 26. Kg2
{[%clk 0:02:04.2]} 26... h5 {[%clk 0:00:14.8]} 27. d7 {[%clk 0:01:53.3]} 27...
Rf8 {[%clk 0:00:14.9]} 28. Qc8 {[%clk 0:01:42.4]} 28... h4 {[%clk 0:00:04]} 29.
Qxf8+ {[%clk 0:01:36.1]} 29... Kxf8 {[%clk 0:00:04.6]} 30. Rc8+ {[%clk 0:01:37]}
30... Ke7 {[%clk 0:00:04.4]} 31. d8=Q+ {[%clk 0:01:37.9]} 31... Qxd8 {[%clk
0:00:04.4]} 32. Rxd8 {[%clk 0:01:38.8]} 32... Kxd8 {[%clk 0:00:05.2]} 33. gxh4
{[%clk 0:01:39.4]} 33... Ke7 {[%clk 0:00:05.6]} 34. Kf3 {[%clk 0:01:39.6]} 34...
Kd6 {[%clk 0:00:06]} 35. Ke4 {[%clk 0:01:39]} 35... Kc5 {[%clk 0:00:06.2]} 36.
Kd3 {[%clk 0:01:34.6]} 36... Kb4 {[%clk 0:00:04.9]} 37. f4 {[%clk 0:01:32.4]}
37... Kc5 {[%clk 0:00:03]} 38. e4 {[%clk 0:01:31.9]} 1-0

[Event "Late-Titled-Tuesday-Blitz-August-29-2023"]
[Site "Chess.com"]
[Date "2023.08.29"]
[Round "10"]
[White "gordonzyxu"]
[Black "wild3000"]
[Result "1-0"]
[WhiteElo "2140"]
[BlackElo "2291"]
[TimeControl "180+1"]
[EndTime "15:51:54 PDT"]
[Termination "gordonzyxu won by checkmate"]

1. e4 {[%clk 0:03:00.9]} 1... d5 {[%clk 0:03:00]} 2. exd5 {[%clk 0:03:00.8]}
2... Nf6 {[%clk 0:03:00.8]} 3. Nf3 {[%clk 0:02:57.8]} 3... Nxd5 {[%clk
0:03:00.5]} 4. d4 {[%clk 0:02:57.2]} 4... e6 {[%clk 0:02:58.8]} 5. c4 {[%clk
0:02:53.7]} 5... Nb4 {[%clk 0:02:58.5]} 6. Nc3 {[%clk 0:02:53.9]} 6... c5 {[%clk
0:02:56.7]} 7. a3 {[%clk 0:02:51.8]} 7... cxd4 {[%clk 0:02:56.3]} 8. Nxd4 {[%clk
0:02:51.4]} 8... N4c6 {[%clk 0:02:56.5]} 9. Nxc6 {[%clk 0:02:50.5]} 9... Nxc6
{[%clk 0:02:56.4]} 10. Qxd8+ {[%clk 0:02:48.8]} 10... Kxd8 {[%clk 0:02:56]} 11.
Bf4 {[%clk 0:02:46.6]} 11... a6 {[%clk 0:02:48]} 12. Be2 {[%clk 0:02:44.2]}
12... Be7 {[%clk 0:02:47.6]} 13. O-O-O+ {[%clk 0:02:41]} 13... Ke8 {[%clk
0:02:47.7]} 14. Bf3 {[%clk 0:02:38.4]} 14... g5 {[%clk 0:02:47.2]} 15. Bg3
{[%clk 0:02:30.3]} 15... h5 {[%clk 0:02:45.7]} 16. Bxc6+ {[%clk 0:02:28.5]}
16... bxc6 {[%clk 0:02:45.8]} 17. Ne4 {[%clk 0:02:29.4]} 17... h4 {[%clk
0:02:42.3]} 18. Be5 {[%clk 0:02:28.8]} 18... Rg8 {[%clk 0:02:40.2]} 19. Bf6
{[%clk 0:02:23.6]} 19... Rg6 {[%clk 0:02:30.9]} 20. Bxe7 {[%clk 0:02:11.5]}
20... Kxe7 {[%clk 0:02:31.8]} 21. Rd3 {[%clk 0:02:09]} 21... Ra7 {[%clk
0:02:27.7]} 22. Rhd1 {[%clk 0:02:08.7]} 22... Rd7 {[%clk 0:02:27.3]} 23. Rxd7+
{[%clk 0:02:05.2]} 23... Bxd7 {[%clk 0:02:28.2]} 24. Nc5 {[%clk 0:02:05.8]}
24... Bc8 {[%clk 0:02:28.4]} 25. b4 {[%clk 0:02:03.2]} 25... g4 {[%clk
0:02:27.8]} 26. Kc2 {[%clk 0:02:01.9]} 26... Rf6 {[%clk 0:02:27.2]} 27. Rd2
{[%clk 0:02:01.3]} 27... Rf5 {[%clk 0:02:25.6]} 28. g3 {[%clk 0:01:56.7]} 28...
h3 {[%clk 0:02:25]} 29. Kd3 {[%clk 0:01:52.5]} 29... Rf3+ {[%clk 0:02:24.7]} 30.
Ke4 {[%clk 0:01:50.5]} 30... Rxa3 {[%clk 0:02:21.1]} 31. Kf4 {[%clk 0:01:49.4]}
31... f5 {[%clk 0:02:15]} 32. Nd3 {[%clk 0:01:49.3]} 32... Kf6 {[%clk
0:02:01.1]} 33. Ne5 {[%clk 0:01:48.4]} 33... a5 {[%clk 0:01:58.4]} 34. Rd8
{[%clk 0:01:46.5]} 34... axb4 {[%clk 0:01:49.7]} 35. Rxc8 {[%clk 0:01:45.9]}
35... Ke7 {[%clk 0:01:40.3]} 36. Rxc6 {[%clk 0:01:41.7]} 36... Ra2 {[%clk
0:01:39.8]} 37. Nd3 {[%clk 0:01:39]} 37... b3 {[%clk 0:01:36.3]} 38. Rb6 {[%clk
0:01:36.9]} 38... Ra3 {[%clk 0:01:26.4]} 39. Ke5 {[%clk 0:01:34.2]} 39... Ra5+
{[%clk 0:01:15.3]} 40. Kd4 {[%clk 0:01:32.2]} 40... Ra1 {[%clk 0:01:11.8]} 41.
Ke5 {[%clk 0:01:24.7]} 41... Rh1 {[%clk 0:01:08.3]} 42. Rb7+ {[%clk 0:01:24.6]}
42... Kd8 {[%clk 0:01:06.9]} 43. Rxb3 {[%clk 0:01:13.1]} 43... Rxh2 {[%clk
0:01:06.3]} 44. Rb7 {[%clk 0:01:12.1]} 44... Rh1 {[%clk 0:01:05]} 45. Rh7 {[%clk
0:01:12.4]} 45... Rd1 {[%clk 0:01:02]} 46. Nc5 {[%clk 0:01:09.5]} 46... Re1+
{[%clk 0:00:58.9]} 47. Kd6 {[%clk 0:01:07.1]} 47... Ke8 {[%clk 0:00:56.7]} 48.
Nxe6 {[%clk 0:01:06.4]} 48... Re2 {[%clk 0:00:54.6]} 49. Re7# {[%clk 0:01:05.8]}
1-0

[Event "Late-Titled-Tuesday-Blitz-August-29-2023"]
[Site "Chess.com"]
[Date "2023.08.29"]
[Round "10"]
[White "GreatOwl02"]
[Black "dennisodessa"]
[Result "1/2-1/2"]
[WhiteElo "2394"]
[BlackElo "2523"]
[TimeControl "180+1"]
[EndTime "15:51:56 PDT"]
[Termination "Game drawn by repetition"]

1. d4 {[%clk 0:03:00.2]} 1... Nf6 {[%clk 0:02:50.5]} 2. Bf4 {[%clk 0:02:58.4]}
2... c5 {[%clk 0:02:50]} 3. c3 {[%clk 0:02:57.9]} 3... Qb6 {[%clk 0:02:50.1]} 4.
Qc2 {[%clk 0:02:42.4]} 4... Nc6 {[%clk 0:02:43.9]} 5. e3 {[%clk 0:02:42]} 5...
Nh5 {[%clk 0:02:42.1]} 6. Bg3 {[%clk 0:02:16.9]} 6... d6 {[%clk 0:02:35.4]} 7.
Nd2 {[%clk 0:02:16.1]} 7... Nxg3 {[%clk 0:02:30.4]} 8. hxg3 {[%clk 0:02:17]}
8... g6 {[%clk 0:02:29.9]} 9. Bd3 {[%clk 0:02:06.2]} 9... Bg7 {[%clk 0:02:28.9]}
10. Ngf3 {[%clk 0:02:04.7]} 10... Bd7 {[%clk 0:02:22.4]} 11. a4 {[%clk
0:02:03.8]} 11... Rc8 {[%clk 0:02:21.6]} 12. Nc4 {[%clk 0:02:02.4]} 12... Qc7
{[%clk 0:02:15.8]} 13. dxc5 {[%clk 0:01:57.6]} 13... dxc5 {[%clk 0:02:14.6]} 14.
Rd1 {[%clk 0:01:27.2]} 14... Na5 {[%clk 0:02:07.8]} 15. Nfd2 {[%clk 0:01:20]}
15... O-O {[%clk 0:01:56.2]} 16. O-O {[%clk 0:01:17.8]} 16... Rfd8 {[%clk
0:01:49.2]} 17. e4 {[%clk 0:01:10.5]} 17... a6 {[%clk 0:01:48.8]} 18. Ne3 {[%clk
0:01:07.8]} 18... e6 {[%clk 0:01:48.5]} 19. f4 {[%clk 0:00:56.5]} 19... b5
{[%clk 0:01:40.7]} 20. axb5 {[%clk 0:00:53.8]} 20... axb5 {[%clk 0:01:41.6]} 21.
e5 {[%clk 0:00:52.2]} 21... c4 {[%clk 0:01:41.9]} 22. Be4 {[%clk 0:00:36]} 22...
Qb6 {[%clk 0:01:40.9]} 23. Rfe1 {[%clk 0:00:35.1]} 23... Bf8 {[%clk 0:01:29.3]}
24. Kh2 {[%clk 0:00:34.9]} 24... h5 {[%clk 0:01:29.5]} 25. Nf3 {[%clk
0:00:34.7]} 25... Bc5 {[%clk 0:01:28.8]} 26. Bxg6 {[%clk 0:00:28.7]} 26... Bxe3
{[%clk 0:01:25.3]} 27. Bxf7+ {[%clk 0:00:28.4]} 27... Kxf7 {[%clk 0:01:20.1]}
28. Qh7+ {[%clk 0:00:28.5]} 28... Kf8 {[%clk 0:01:12.3]} 29. Qh8+ {[%clk
0:00:23.1]} 29... Kf7 {[%clk 0:01:10.3]} 30. Qxh5+ {[%clk 0:00:17.7]} 30... Kg7
{[%clk 0:01:08.1]} 31. Qg5+ {[%clk 0:00:16.8]} 31... Kh7 {[%clk 0:01:05.4]} 32.
Qh5+ {[%clk 0:00:16.3]} 32... Kg7 {[%clk 0:01:05]} 33. Qg5+ {[%clk 0:00:16.1]}
33... Kh7 {[%clk 0:01:04.9]} 34. Qh5+ {[%clk 0:00:16.6]} 34... Kg7 {[%clk
0:01:04.7]} 1/2-1/2

[Event "Late-Titled-Tuesday-Blitz-August-29-2023"]
[Site "Chess.com"]
[Date "2023.08.29"]
[Round "10"]
[White "TC2304"]
[Black "NMJeevanK"]
[Result "0-1"]
[WhiteElo "2411"]
[BlackElo "2522"]
[TimeControl "180+1"]
[EndTime "15:51:57 PDT"]
[Termination "NMJeevanK won by resignation"]

1. c4 {[%clk 0:03:00.9]} 1... e5 {[%clk 0:02:59.1]} 2. g3 {[%clk 0:03:01]} 2...
Nf6 {[%clk 0:02:58.1]} 3. Bg2 {[%clk 0:03:01.6]} 3... c6 {[%clk 0:02:56.6]} 4.
d4 {[%clk 0:02:55.9]} 4... Bb4+ {[%clk 0:02:54.2]} 5. Bd2 {[%clk 0:02:46.8]}
5... Bxd2+ {[%clk 0:02:49.8]} 6. Qxd2 {[%clk 0:02:46.6]} 6... exd4 {[%clk
0:02:49.5]} 7. Qxd4 {[%clk 0:02:41]} 7... O-O {[%clk 0:02:47.3]} 8. Nc3 {[%clk
0:02:37.6]} 8... Re8 {[%clk 0:02:37.7]} 9. Nf3 {[%clk 0:02:35.5]} 9... Na6
{[%clk 0:02:33.5]} 10. O-O {[%clk 0:02:34.3]} 10... Nc7 {[%clk 0:02:27.1]} 11.
Rfd1 {[%clk 0:02:29.7]} 11... Qe7 {[%clk 0:02:14.8]} 12. c5 {[%clk 0:02:18.3]}
12... Ne6 {[%clk 0:02:12.9]} 13. Qd6 {[%clk 0:01:37.8]} 13... Nxc5 {[%clk
0:02:11.5]} 14. e3 {[%clk 0:01:32.7]} 14... Nce4 {[%clk 0:02:05]} 15. Nxe4
{[%clk 0:01:28.4]} 15... Nxe4 {[%clk 0:02:05.9]} 16. Qd3 {[%clk 0:01:15.3]}
16... d5 {[%clk 0:02:05]} 17. Nd4 {[%clk 0:01:14.2]} 17... Bg4 {[%clk
0:01:57.6]} 18. Rdc1 {[%clk 0:01:04.2]} 18... Bh5 {[%clk 0:01:48.3]} 19. Nf5
{[%clk 0:00:57.2]} 19... Qf6 {[%clk 0:01:44.6]} 20. f3 {[%clk 0:00:36.5]} 20...
Qxf5 {[%clk 0:01:29.6]} 21. fxe4 {[%clk 0:00:35.8]} 21... dxe4 {[%clk
0:01:30.5]} 22. Qc3 {[%clk 0:00:30.6]} 22... Bf3 {[%clk 0:01:26.4]} 23. Rf1
{[%clk 0:00:30.8]} 23... Rad8 {[%clk 0:01:24.2]} 24. Rf2 {[%clk 0:00:31.1]}
24... Rd3 {[%clk 0:01:20]} 25. Qe1 {[%clk 0:00:23.5]} 25... Red8 {[%clk
0:01:16.7]} 26. Bxf3 {[%clk 0:00:22.1]} 26... exf3 {[%clk 0:01:16.6]} 27. e4
{[%clk 0:00:19.3]} 27... Qc5 {[%clk 0:01:12.6]} 28. Qf1 {[%clk 0:00:18.5]} 28...
Rd2 {[%clk 0:01:06.5]} 29. Re1 {[%clk 0:00:17.7]} 29... Rxb2 {[%clk 0:01:04.2]}
30. Rc1 {[%clk 0:00:17.5]} 30... Qb6 {[%clk 0:01:03.5]} 31. Kh1 {[%clk
0:00:08.7]} 31... Rxf2 {[%clk 0:01:02.8]} 0-1

[Event "Late-Titled-Tuesday-Blitz-August-29-2023"]
[Site "Chess.com"]
[Date "2023.08.29"]
[Round "10"]
[White "PawnEatingZombie"]
[Black "PNEPaul"]
[Result "1-0"]
[WhiteElo "2093"]
[BlackElo "1885"]
[TimeControl "180+1"]
[EndTime "15:52:00 PDT"]
[Termination "PawnEatingZombie won by resignation"]

1. e4 {[%clk 0:03:00.9]} 1... e5 {[%clk 0:02:59.5]} 2. Nf3 {[%clk 0:03:00.1]}
2... Nc6 {[%clk 0:02:59.5]} 3. d4 {[%clk 0:03:00.6]} 3... exd4 {[%clk
0:02:58.1]} 4. Nxd4 {[%clk 0:03:01.2]} 4... Be7 {[%clk 0:02:57.7]} 5. Nxc6
{[%clk 0:02:56.3]} 5... dxc6 {[%clk 0:02:57.6]} 6. Bd3 {[%clk 0:02:56.5]} 6...
Nf6 {[%clk 0:02:56.9]} 7. O-O {[%clk 0:02:56.5]} 7... O-O {[%clk 0:02:56.7]} 8.
Nc3 {[%clk 0:02:56.7]} 8... h6 {[%clk 0:02:52.8]} 9. h3 {[%clk 0:02:49.8]} 9...
Be6 {[%clk 0:02:41.4]} 10. Qf3 {[%clk 0:02:48.9]} 10... Nd7 {[%clk 0:02:38.5]}
11. Bf4 {[%clk 0:02:47.1]} 11... Bf6 {[%clk 0:02:34.2]} 12. Qg3 {[%clk
0:02:30.7]} 12... Bxc3 {[%clk 0:02:22.8]} 13. bxc3 {[%clk 0:02:28.7]} 13... Qf6
{[%clk 0:02:20.6]} 14. e5 {[%clk 0:01:50.7]} 14... Qe7 {[%clk 0:02:08.4]} 15.
Bxh6 {[%clk 0:01:49.4]} 15... f5 {[%clk 0:02:00.4]} 16. exf6 {[%clk 0:01:42.1]}
16... Qxf6 {[%clk 0:01:40.1]} 17. Bg5 {[%clk 0:01:40.9]} 17... Qe5 {[%clk
0:01:40]} 18. Qh4 {[%clk 0:01:37.6]} 18... Bf5 {[%clk 0:01:32.9]} 19. Rae1
{[%clk 0:01:34.3]} 19... Qc5 {[%clk 0:01:30.4]} 20. Re7 {[%clk 0:01:22.6]} 20...
Ne5 {[%clk 0:01:18.3]} 21. Rxg7+ {[%clk 0:00:15.2]} 21... Kxg7 {[%clk
0:01:11.6]} 22. Bh6+ {[%clk 0:00:15.7]} 22... Kf7 {[%clk 0:00:50]} 23. Qh5+
{[%clk 0:00:12.7]} 23... Bg6 {[%clk 0:00:45.4]} 24. Bxg6+ {[%clk 0:00:12]} 24...
Nxg6 {[%clk 0:00:44.5]} 25. Qxc5 {[%clk 0:00:11.7]} 25... Rfe8 {[%clk
0:00:44.4]} 26. Qf5+ {[%clk 0:00:10.8]} 1-0

[Event "Late-Titled-Tuesday-Blitz-August-29-2023"]
[Site "Chess.com"]
[Date "2023.08.29"]
[Round "10"]
[White "Rud_Makarian"]
[Black "platy3"]
[Result "0-1"]
[WhiteElo "3000"]
[BlackElo "2922"]
[TimeControl "180+1"]
[EndTime "15:52:11 PDT"]
[Termination "platy3 won by checkmate"]

1. d4 {[%clk 0:03:00.9]} 1... Nf6 {[%clk 0:03:00.1]} 2. c4 {[%clk 0:03:01.5]}
2... e6 {[%clk 0:03:00.8]} 3. Nf3 {[%clk 0:03:02.2]} 3... d5 {[%clk 0:03:01.2]}
4. g3 {[%clk 0:03:02.9]} 4... Be7 {[%clk 0:02:59.8]} 5. Bg2 {[%clk 0:03:03.3]}
5... O-O {[%clk 0:03:00.5]} 6. O-O {[%clk 0:03:04]} 6... dxc4 {[%clk 0:03:00.9]}
7. Qc2 {[%clk 0:03:04.6]} 7... a6 {[%clk 0:03:01.6]} 8. a4 {[%clk 0:03:05.2]}
8... Bd7 {[%clk 0:03:01.8]} 9. Qxc4 {[%clk 0:03:05.8]} 9... Bc6 {[%clk
0:03:02.4]} 10. Bg5 {[%clk 0:03:06.5]} 10... a5 {[%clk 0:03:02.3]} 11. Nc3
{[%clk 0:03:06.7]} 11... Na6 {[%clk 0:03:01.1]} 12. Bxf6 {[%clk 0:02:59.7]}
12... Bxf6 {[%clk 0:03:01.1]} 13. e4 {[%clk 0:03:00.4]} 13... Nb4 {[%clk
0:02:59.6]} 14. Rad1 {[%clk 0:03:00.5]} 14... Qe8 {[%clk 0:02:45.6]} 15. Qb3
{[%clk 0:03:00.3]} 15... Rd8 {[%clk 0:02:43.7]} 16. Rfe1 {[%clk 0:02:59.3]}
16... e5 {[%clk 0:01:37.5]} 17. dxe5 {[%clk 0:01:29.1]} 17... Rxd1 {[%clk
0:01:37]} 18. Qxd1 {[%clk 0:01:30]} 18... Bxe5 {[%clk 0:01:37.1]} 19. Nd4 {[%clk
0:01:29.8]} 19... Bxd4 {[%clk 0:01:34.8]} 20. Qxd4 {[%clk 0:01:30.1]} 20... Nc2
{[%clk 0:01:35.3]} 21. Qd2 {[%clk 0:01:30.8]} 21... Nxe1 {[%clk 0:01:35.6]} 22.
Qxe1 {[%clk 0:01:31.7]} 22... Qe5 {[%clk 0:01:35]} 23. Qe3 {[%clk 0:01:29.1]}
23... Rd8 {[%clk 0:01:34.6]} 24. h4 {[%clk 0:01:29.6]} 24... h6 {[%clk
0:01:32.1]} 25. Kh2 {[%clk 0:01:29.7]} 25... Rd6 {[%clk 0:01:28.7]} 26. Qe2
{[%clk 0:01:27.2]} 26... Qd4 {[%clk 0:01:26.3]} 27. e5 {[%clk 0:01:21.1]} 27...
Re6 {[%clk 0:01:23.2]} 28. Bxc6 {[%clk 0:01:21.1]} 28... Rxc6 {[%clk 0:01:16.6]}
29. Kh3 {[%clk 0:01:17]} 29... h5 {[%clk 0:01:11.3]} 30. f4 {[%clk 0:01:04.7]}
30... g6 {[%clk 0:01:08]} 31. Qf3 {[%clk 0:00:58]} 31... Rb6 {[%clk 0:01:04.2]}
32. g4 {[%clk 0:00:35.8]} 32... Rxb2 {[%clk 0:01:00.6]} 33. Ne2 {[%clk
0:00:32.3]} 33... Qd1 {[%clk 0:00:56.4]} 34. e6 {[%clk 0:00:27.5]} 34... Qxe2
{[%clk 0:00:51.1]} 35. exf7+ {[%clk 0:00:27.3]} 35... Kxf7 {[%clk 0:00:46.9]}
36. Qb3+ {[%clk 0:00:28.1]} 36... Rxb3# {[%clk 0:00:46.6]} 0-1